bitfinex/quotes_SOLUSD_20250918
["timestamp","ask_amount","ask_price","bid_price","bid_amount"]
[1758207062308,0.06,246.85,246.82,0.28432314]
[1758207062623,0.06,246.85,246.83,32.66513713]
[1758207062788,1e-08,246.87,246.86,26.0]
[1758207062988,1e-08,246.87,246.86,57.9650879]
[1758207063188,1e-08,246.87,246.86,58.6650879]
[1758207063992,0.7,246.95,246.86,72.54500505]
[1758207064212,0.7,246.95,246.87,0.98432314]
[1758207064392,0.2,246.96,246.91,26.0]
[1758207064589,0.2,246.96,246.95,26.0]
[1758207064909,0.2,246.96,246.95,61.60940271]
[1758207066215,0.9,246.96,246.93,4.04960658]
[1758207066407,0.7,246.95,246.94,31.54]
[1758207067411,0.2,246.96,246.95,4.04940271]
[1758207067614,0.9,246.96,246.95,4.04940271]
[1758207067802,0.2,246.96,246.95,4.04940271]
[1758207068111,0.2,246.96,246.95,35.58940271]
[1758207069212,0.2,246.96,246.95,50.57426013]
[1758207069396,0.2,246.96,246.95,30.04940271]
[1758207069595,0.2,246.96,246.95,4.04940271]
[1758207070790,0.2,246.96,246.95,4.74940271]
[1758207070991,0.2,246.96,246.95,18.34499672]
[1758207071418,0.2,246.96,246.95,30.04940271]
[1758207071795,0.2,246.96,246.95,61.58940271]
[1758207073239,0.2,246.96,246.95,76.28993699]
[1758207073418,0.2,246.96,246.95,76.57426013]
[1758207073593,0.1,246.99,246.98,26.0]
[1758207073789,0.1,246.99,246.98,57.94489108]
[1758207074016,0.1,246.99,246.98,58.64489108]
[1758207074613,0.1,246.99,246.98,64.31405508]
[1758207074807,0.06,247.03,247.02,39.59559401]
[1758207075020,0.06,247.06,247.05,39.59559401]
[1758207075317,0.06,247.1,247.05,71.62037037]
[1758207075492,0.06,247.1,247.05,72.32037037]
[1758207075694,0.06,247.1,247.06,0.7]
[1758207075918,0.06,247.1,247.07,32.72474359]
[1758207076235,0.06,247.1,247.08,31.62]
[1758207076526,1e-08,247.09,247.08,46.19991715]
[1758207076725,1e-08,247.09,247.08,50.24718928]
[1758207077015,1e-08,247.09,247.08,49.54718928]
[1758207077227,1e-08,247.09,247.08,30.04727213]
[1758207077726,1e-08,247.09,247.08,61.66727213]
[1758207077727,0.70000001,247.09,247.08,61.66727213]
[1758207078399,1e-08,247.09,247.08,61.66727213]
[1758207078797,0.70000001,247.09,247.08,61.66727213]
[1758207079027,0.70000001,247.09,247.08,30.04727213]
[1758207079234,0.70000001,247.09,247.08,61.66727213]
[1758207079537,0.70000001,247.09,247.08,61.64727213]
[1758207080108,1e-08,247.09,247.08,61.64727213]
[1758207083424,0.70000001,247.09,247.08,30.04727213]
[1758207083604,0.70000001,247.09,247.08,61.62727213]
[1758207084098,1e-08,247.09,247.08,61.62727213]
[1758207085012,1e-08,247.12,247.11,39.59559401]
[1758207085240,0.06,247.21,247.2,17.64090145]
[1758207085415,0.06,247.21,247.2,50.32975533]
[1758207085612,1e-08,247.21,247.2,19.02975533]
[1758207086042,1e-08,247.23,247.22,39.87991715]
[1758207086237,1e-08,247.23,247.22,72.30441516]
[1758207086543,1e-08,247.23,247.22,73.00441516]
[1758207087331,1e-08,247.23,247.22,109.20939533]
[1758207087530,1e-08,247.23,247.22,108.80489732]
[1758207087741,1e-08,247.23,247.22,76.78489732]
[1758207087936,1e-08,247.23,247.22,97.08939533]
[1758207088125,0.1,247.29,247.23,0.28432314]
[1758207088451,0.1,247.29,247.22,80.79734776]
[1758207088452,0.1,247.29,247.26,39.87991715]
[1758207088650,0.1,247.29,247.28,13.59559401]
[1758207089116,0.1,247.29,247.28,47.25381518]
[1758207089318,0.1,247.29,247.28,51.29781388]
[1758207089725,0.1,247.29,247.28,19.25781388]
[1758207090030,0.1,247.29,247.28,52.28213702]
[1758207090230,0.2,247.34,247.32,13.87991715]
[1758207090547,0.2,247.34,247.33,46.01991212]
[1758207090937,0.2,247.34,247.33,13.59559401]
[1758207091327,0.2,247.34,247.33,17.63877518]
[1758207091527,0.2,247.34,247.33,49.65877518]
[1758207092747,0.2,247.34,247.33,58.0]
[1758207094032,0.2,247.34,247.33,32.0]
[1758207094239,0.87,247.34,247.31,30.44785895]
[1758207094425,0.67,247.33,247.32,31.98]
[1758207094625,0.2,247.34,247.33,4.04318117]
[1758207095233,0.87,247.34,247.33,4.04318117]
[1758207095781,0.2,247.34,247.33,62.00318117]
[1758207095930,0.87,247.34,247.33,62.00318117]
[1758207096654,0.2,247.34,247.33,62.00318117]
[1758207097435,0.2,247.34,247.33,75.59877518]
[1758207097749,0.2,247.34,247.33,76.27877518]
[1758207097950,0.2,247.34,247.33,77.21660365]
[1758207098132,0.2,247.34,247.33,45.25660365]
[1758207098330,0.2,247.34,247.33,77.21660365]
[1758207098732,0.2,247.34,247.33,45.25660365]
[1758207098931,0.2,247.34,247.33,77.21660365]
[1758207099443,0.2,247.34,247.33,77.89660365]
[1758207099653,1e-08,247.34,247.33,78.18092679]
[1758207099841,0.1,247.39,247.33,78.18092679]
[1758207099842,0.1,247.39,247.38,13.59559401]
[1758207100052,0.1,247.39,247.38,45.9598304]
[1758207100644,0.1,247.39,247.38,47.57739718]
[1758207100939,0.1,247.39,247.38,49.59795798]
[1758207101144,0.1,247.39,247.38,51.21552475]
[1758207101643,0.1,247.39,247.38,49.59795798]
[1758207101852,0.1,247.39,247.38,53.73852989]
[1758207102049,0.1,247.39,247.38,49.59795798]
[1758207102359,0.1,247.39,247.38,51.21552476]
[1758207102654,0.77,247.39,247.38,36.00236397]
[1758207102855,0.1,247.39,247.38,36.00236397]
[1758207103555,0.1,247.39,247.38,61.98236397]
[1758207104138,0.83,247.39,247.38,4.04236397]
[1758207104445,0.83,247.39,247.38,61.96236397]
[1758207105153,0.83,247.39,247.36,26.0]
[1758207105332,0.67,247.38,247.36,26.0]
[1758207105528,0.16,247.39,247.37,31.92]
[1758207105774,0.16,247.39,247.36,26.0]
[1758207106058,0.67,247.38,247.35,31.92]
[1758207106253,0.16,247.39,247.37,26.0]
[1758207106648,4.20225074,247.39,247.31,4.043381]
[1758207106862,0.67,247.38,247.32,31.9]
[1758207107045,4.20221267,247.39,247.35,26.0]
[1758207107243,0.67,247.37,247.35,26.0]
[1758207107449,0.67,247.36,247.34,26.0]
[1758207107656,0.67,247.35,247.34,26.0]
[1758207108156,0.67,247.35,247.31,35.94335299]
[1758207108367,0.67,247.34,247.31,31.9]
[1758207108541,4.04237195,247.38,247.34,26.0]
[1758207108740,4.04237195,247.38,247.3,4.04367068]
[1758207108741,0.67,247.37,247.3,31.9]
[1758207109042,0.67,247.37,247.33,26.0]
[1758207109365,0.67,247.36,247.3,31.9]
[1758207109660,5.73573073,247.38,247.33,26.0]
[1758207109661,0.67,247.35,247.33,26.0]
[1758207109959,0.67,247.34,247.33,26.0]
[1758207110137,0.67,247.34,247.32,26.0]
[1758207110334,0.67,247.33,247.32,26.0]
[1758207111048,0.67,247.33,247.29,0.03]
[1758207111563,0.67,247.33,247.29,26.03]
[1758207111746,4.71335955,247.32,247.29,0.03]
[1758207113567,1.69335878,247.31,247.29,0.03]
[1758207113758,4.04367165,247.3,247.29,0.03]
[1758207113947,4.71367165,247.3,247.29,0.03]
[1758207114446,6.40703043,247.3,247.29,0.03]
[1758207116388,6.69135357,247.3,247.29,0.03]
[1758207116842,18.5935888,247.3,247.29,0.03]
[1758207117042,7.40070303,247.3,247.29,0.03]
[1758207117245,0.67,247.3,247.29,0.03]
[1758207118048,0.95432314,247.3,247.29,0.03]
[1758207118676,14.54991715,247.3,247.29,0.03]
[1758207118873,17.23694853,247.3,247.29,0.03]
[1758207119253,49.11694853,247.3,247.29,0.03]
[1758207119461,17.23694853,247.3,247.29,0.03]
[1758207119766,2.68703138,247.3,247.29,0.73]
[1758207119966,0.69,247.36,247.29,0.03]
[1758207120169,2.38335878,247.36,247.29,0.03]
[1758207120548,4.73271679,247.36,247.29,0.03]
[1758207121055,0.69,247.36,247.29,0.03]
[1758207121248,4.73277088,247.36,247.29,0.03]
[1758207122749,14.83949791,247.36,247.29,0.03]
[1758207122952,2.9796085,247.35,247.29,0.03]
[1758207123269,0.28432314,247.35,247.29,0.03]
[1758207123473,0.72,247.34,247.29,0.03]
[1758207124349,0.72,247.33,247.29,0.03]
[1758207124545,0.72,247.32,247.29,0.03]
[1758207124856,0.72,247.31,247.29,0.03]
[1758207125565,0.72,247.3,247.29,0.03]
[1758207126277,3.41648282,247.3,247.29,0.03]
[1758207126778,2.69648282,247.32,247.29,0.03]
[1758207126970,2.69648282,247.34,247.29,0.03]
[1758207127577,0.72,247.33,247.29,0.03]
[1758207128077,2.70237459,247.36,247.29,0.03]
[1758207128257,2.70237459,247.35,247.29,0.03]
[1758207128457,2.70237459,247.34,247.29,0.03]
[1758207128778,0.72,247.34,247.29,0.03]
[1758207129381,2.70677549,247.33,247.29,0.03]
[1758207129674,0.72,247.34,247.29,26.03]
[1758207129869,2.70677525,247.33,247.29,26.03]
[1758207130072,0.72,247.34,247.29,26.03]
[1758207130274,7.96469141,247.38,247.29,0.03]
[1758207130275,2.7067554,247.33,247.29,0.03]
[1758207130578,2.70726903,247.36,247.3,1.11436716]
[1758207130884,0.16,247.39,247.35,26.0]
[1758207131186,0.16,247.39,247.38,26.0]
[1758207131556,0.16,247.39,247.38,40.7098304]
[1758207132573,0.16,247.39,247.38,76.89219437]
[1758207133154,0.16,247.39,247.38,30.04236397]
[1758207133682,0.16,247.39,247.38,4.04236397]
[1758207133885,0.16,247.39,247.38,4.75236397]
[1758207135259,0.16,247.39,247.38,4.04236397]
[1758207135577,0.16,247.39,247.38,62.87236397]
[1758207136084,0.16,247.39,247.38,76.87219437]
[1758207136585,0.16,247.39,247.38,63.27660036]
[1758207136881,0.16,247.39,247.38,62.16236397]
[1758207137062,0.16,247.39,247.38,62.87236397]
[1758207137567,0.16,247.39,247.38,4.04236397]
[1758207138568,0.16,247.39,247.38,30.04236397]
[1758207139460,0.88,247.39,247.36,26.0]
[1758207139787,0.72,247.38,247.36,26.0]
[1758207140158,0.16,247.39,247.37,26.0]
[1758207140560,0.16,247.39,247.38,0.40423639]
[1758207140760,0.16,247.39,247.38,44.34795798]
[1758207141054,0.16,247.39,247.38,44.75219437]
[1758207144673,0.16,247.39,247.38,44.34795798]
[1758207146584,0.16,247.39,247.38,43.63795798]
[1758207147761,0.16,247.39,247.38,75.65795798]
[1758207149288,0.16,247.39,247.38,4.04236397]
[1758207149988,0.88,247.39,247.38,4.04236397]
[1758207150991,0.88,247.39,247.35,36.10285425]
[1758207151192,0.88,247.39,247.35,46.20998988]
[1758207151193,0.72,247.38,247.35,46.20998988]
[1758207151390,0.72,247.37,247.35,46.20998988]
[1758207151690,0.72,247.37,247.35,14.14998988]
[1758207152093,0.72,247.36,247.35,14.14998988]
[1758207152494,0.82,247.39,247.35,14.14998988]
[1758207152694,0.66,247.38,247.37,26.0]
[1758207154484,0.66,247.38,247.36,30.04263344]
[1758207154687,0.66,247.37,247.36,30.04263344]
[1758207155105,0.66,247.37,247.34,0.03]
[1758207155314,0.66,247.36,247.35,30.04281943]
[1758207155992,0.16,247.39,247.37,26.0]
[1758207156192,0.66,247.55,247.41,26.0]
[1758207156393,0.66,247.58,247.48,13.59559401]
[1758207156601,0.66,247.56,247.48,45.83559401]
[1758207156796,0.66,247.56,247.48,46.50559401]
[1758207157015,10.51932612,247.6,247.51,26.0]
[1758207157016,0.66,247.6,247.51,26.0]
[1758207157308,0.66,247.63,247.55,26.0]
[1758207157489,0.66,247.63,247.55,58.24]
[1758207158194,0.76,247.59,247.55,58.24]
[1758207158375,0.1,247.59,247.58,26.0]
[1758207159200,0.76,247.59,247.52,26.0]
[1758207159379,0.66,247.58,247.52,26.0]
[1758207159582,0.1,247.59,247.52,26.0]
[1758207159583,0.66,247.57,247.52,26.0]
[1758207159788,0.66,247.56,247.52,26.0]
[1758207159986,0.76,247.59,247.53,26.0]
[1758207160181,0.76,247.59,247.5,14.54545454]
[1758207160182,0.76,247.59,247.55,26.0]
[1758207160410,0.76,247.59,247.56,4.03942478]
[1758207160596,0.1,247.59,247.56,4.03942478]
[1758207161305,0.1,247.59,247.56,14.13798674]
[1758207161514,0.1,247.59,247.58,26.0]
[1758207162401,0.1,247.59,247.58,30.03909847]
[1758207162991,0.76,247.59,247.55,26.0]
[1758207163191,0.66,247.58,247.55,26.0]
[1758207163406,0.66,247.57,247.54,26.0]
[1758207163712,0.66,247.56,247.48,10.10142435]
[1758207163907,6.0767009,247.57,247.51,26.0]
[1758207164211,0.66,247.55,247.48,10.10142435]
[1758207164511,0.66,247.55,247.51,26.0]
[1758207164688,0.66,247.54,247.51,26.0]
[1758207164894,0.66,247.53,247.51,26.0]
[1758207165311,0.66,247.56,247.51,26.0]
[1758207165698,0.66,247.55,247.51,26.0]
[1758207166413,0.66,247.55,247.52,4.04007756]
[1758207166596,0.66,247.54,247.51,26.0]
[1758207166798,6.0767009,247.57,247.51,26.0]
[1758207167000,0.66,247.53,247.51,30.0402065]
[1758207168006,0.66,247.52,247.5,26.0]
[1758207168208,0.66,247.51,247.5,26.0]
[1758207168705,0.66,247.55,247.51,4.04024079]
[1758207168888,0.66,247.58,247.51,4.04024079]
[1758207169292,0.66,247.58,247.51,14.14084278]
[1758207169491,0.66,247.58,247.54,26.0]
[1758207169899,0.1,247.59,247.54,26.0]
[1758207170302,0.66,247.58,247.54,26.0]
[1758207170504,0.1,247.59,247.54,36.09936101]
[1758207170709,0.1,247.59,247.54,36.76936101]
[1758207171009,0.1,247.59,247.55,4.03958796]
[1758207171203,0.1,247.59,247.55,14.13855786]
[1758207171515,0.06,247.56,247.55,14.13855786]
[1758207173392,0.06,247.56,247.55,30.03958796]
[1758207174414,0.06,247.56,247.55,26.0]
[1758207175423,0.06,247.56,247.55,30.03958796]
[1758207176795,0.72,247.56,247.48,10.10164021]
[1758207177005,0.66,247.55,247.51,26.0]
[1758207177214,0.71,247.54,247.49,4.04056729]
[1758207177517,0.71,247.53,247.5,26.0]
[1758207177718,0.71,247.52,247.49,4.04056729]
[1758207178015,0.71,247.51,247.46,4.04105714]
[1758207178218,10.17614025,247.56,247.46,14.80369999]
[1758207178219,3.41431348,247.55,247.46,14.80369999]
[1758207178400,0.71,247.55,247.5,4.04040404]
[1758207178599,0.71,247.54,247.5,4.04040404]
[1758207178901,0.71,247.53,247.5,4.04040404]
[1758207179221,0.71,247.52,247.49,26.0]
[1758207179607,0.71,247.52,247.49,30.04055976]
[1758207179816,0.71,247.51,247.49,30.04055976]
[1758207179995,4.0994579,247.56,247.49,30.04055976]
[1758207180191,0.71,247.55,247.49,26.0]
[1758207180396,10.1761588,247.56,247.43,10.10372836]
[1758207180397,10.11676778,247.53,247.43,10.10372836]
[1758207180592,0.71,247.52,247.43,10.10372836]
[1758207180931,0.71,247.54,247.48,26.0]
[1758207181213,0.71,247.54,247.44,13.59559401]
[1758207181398,0.71,247.54,247.46,0.66]
[1758207181719,0.71,247.54,247.46,26.66]
[1758207182096,0.71,247.53,247.46,26.0]
[1758207182297,0.71,247.52,247.46,26.0]
[1758207182600,0.71,247.52,247.47,4.04089384]
[1758207182799,0.71,247.52,247.48,26.0]
[1758207183001,0.72,247.54,247.48,26.0]
[1758207183403,0.06,247.56,247.48,0.71]
[1758207183713,0.06,247.56,247.5,26.0]
[1758207184700,0.72,247.55,247.51,4.04024079]
[1758207184907,0.72,247.54,247.51,4.04024079]
[1758207185120,0.72,247.53,247.51,4.04024079]
[1758207185415,0.72,247.53,247.5,30.04040314]
[1758207185927,0.06,247.56,247.5,30.04040314]
[1758207186219,0.72,247.55,247.5,30.04040314]
[1758207186408,0.72,247.54,247.5,30.04040314]
[1758207187124,0.72,247.53,247.47,26.0]
[1758207187321,0.72,247.52,247.47,26.0]
[1758207187619,0.72,247.51,247.47,26.0]
[1758207187917,0.28432314,247.55,247.43,4.04146039]
[1758207187918,0.72,247.5,247.43,4.04146039]
[1758207188907,0.72,247.5,247.43,14.14532815]
[1758207189226,0.72,247.53,247.44,0.71]
[1758207190108,4.75991634,247.53,247.44,0.71]
[1758207190306,0.72,247.53,247.44,0.71]
[1758207190506,4.75991988,247.53,247.44,0.71]
[1758207191226,4.75991988,247.53,247.45,4.04122044]
[1758207191406,0.72,247.52,247.45,4.04122044]
[1758207191601,0.72,247.51,247.43,30.07143455]
[1758207191802,0.72,247.5,247.43,26.03]
[1758207192031,0.72,247.5,247.43,0.03]
[1758207192032,0.72,247.49,247.43,0.03]
[1758207192326,1.00432314,247.49,247.43,0.03]
[1758207192625,38.1367009,247.48,247.43,0.03]
[1758207193038,1.00432314,247.47,247.43,0.03]
[1758207193336,4.04122044,247.45,247.43,0.03]
[1758207193702,0.72,247.44,247.43,0.03]
[1758207194728,4.76138376,247.44,247.43,0.03]
[1758207194908,24.71800181,247.44,247.43,0.03]
[1758207195412,27.4245223,247.44,247.43,0.03]
[1758207195609,13.82892829,247.44,247.43,0.03]
[1758207196206,11.1224078,247.44,247.43,0.03]
[1758207197535,13.82797016,247.44,247.43,0.03]
[1758207198312,59.44356417,247.44,247.43,0.03]
[1758207198712,56.73800181,247.44,247.43,0.03]
[1758207199617,18.64130091,247.44,247.43,0.03]
[1758207199824,56.73800181,247.44,247.43,0.03]
[1758207201511,65.51820055,247.44,247.43,0.03]
[1758207202117,33.49820055,247.44,247.43,0.03]
[1758207202319,59.42149965,247.44,247.43,0.03]
[1758207202829,59.44149965,247.44,247.43,0.03]
[1758207203030,18.64130091,247.44,247.43,0.03]
[1758207203346,50.66130091,247.44,247.43,0.03]
[1758207203632,56.73800181,247.44,247.43,0.03]
[1758207203830,50.66130091,247.44,247.43,0.03]
[1758207204023,56.73800181,247.44,247.43,0.03]
[1758207204535,59.43963355,247.44,247.43,0.03]
[1758207205339,27.41963355,247.44,247.43,0.03]
[1758207205520,59.41963355,247.44,247.43,0.03]
[1758207205716,24.71800181,247.44,247.43,0.03]
[1758207205923,56.71800181,247.44,247.43,0.03]
[1758207206219,5.0457069,247.44,247.43,0.03]
[1758207206546,31.98,247.44,247.43,0.03]
[1758207206831,4.76088372,247.48,247.43,0.03]
[1758207207015,0.28432314,247.46,247.43,0.03]
[1758207207210,4.04122044,247.45,247.43,0.03]
[1758207207611,32.0,247.44,247.43,0.03]
[1758207208236,38.7967009,247.44,247.43,0.03]
[1758207208440,39.08102404,247.44,247.43,0.03]
[1758207208934,1.00432314,247.44,247.43,0.03]
[1758207209135,32.28432314,247.44,247.43,0.03]
[1758207209317,37.0457069,247.44,247.43,0.03]
[1758207210537,36.3257069,247.44,247.43,0.03]
[1758207210848,49.90130091,247.44,247.43,0.03]
[1758207211043,50.62130091,247.44,247.43,0.03]
[1758207211541,26.0,247.37,247.26,0.74]
[1758207211837,6.36102404,247.35,247.26,0.74]
[1758207212132,32.06,247.35,247.3,0.71]
[1758207212335,6.0767009,247.37,247.31,4.17347666]
[1758207212539,32.08,247.36,247.32,0.66]
[1758207212728,38.1567009,247.36,247.32,0.66]
[1758207212923,0.72,247.4,247.32,0.66]
[1758207212924,4.76219443,247.4,247.32,4.70333312]
[1758207213111,32.36432314,247.39,247.33,0.66]
[1758207213316,38.44102404,247.39,247.33,0.66]
[1758207213532,32.06,247.38,247.35,0.66]
[1758207213712,32.06,247.37,247.32,4.04333312]
[1758207213915,32.06,247.37,247.34,0.69]
[1758207214531,32.06,247.36,247.34,4.73300124]
[1758207214923,0.28432314,247.39,247.34,4.73300124]
[1758207214924,32.04,247.35,247.34,4.73296474]
[1758207215130,32.04,247.35,247.34,0.69]
[1758207216852,32.04,247.35,247.34,0.03]
[1758207217226,38.1167009,247.35,247.34,0.03]
[1758207217449,13.59559401,247.42,247.34,0.03]
[1758207217624,0.06,247.49,247.36,0.28432314]
[1758207217833,0.06,247.49,247.41,26.0]
[1758207218048,0.06,247.49,247.42,0.66]
[1758207218648,0.06,247.49,247.43,14.14541486]
[1758207218852,0.06,247.49,247.44,0.66]
[1758207219147,0.06,247.49,247.45,0.66]
[1758207219331,0.06,247.49,247.46,0.66]
[1758207220551,0.06,247.49,247.46,4.70096032]
[1758207222127,32.26,247.49,247.44,4.04124465]
[1758207222434,32.26,247.49,247.45,0.66]
[1758207222636,32.26,247.49,247.46,0.66]
[1758207222830,0.06,247.49,247.46,0.66]
[1758207223034,32.26,247.49,247.46,0.66]
[1758207223550,0.06,247.49,247.47,0.66]
[1758207223744,0.06,247.49,247.48,0.66]
[1758207224150,0.06,247.49,247.48,4.70073056]
[1758207225841,0.06,247.49,247.48,30.04073056]
[1758207226052,0.06,247.49,247.48,4.04073056]
[1758207226740,0.06,247.49,247.47,26.0]
[1758207227249,0.06,247.49,247.44,30.04123892]
[1758207227742,0.06,247.49,247.45,0.66]
[1758207227946,0.06,247.49,247.46,0.66]
[1758207228341,0.06,247.49,247.47,0.66]
[1758207228547,0.06,247.49,247.48,4.04073056]
[1758207228745,0.06,247.49,247.48,4.70073056]
[1758207230961,0.06,247.52,247.51,26.0]
[1758207231161,0.06,247.52,247.51,26.40402407]
[1758207231364,0.06,247.52,247.51,27.06402407]
[1758207233047,0.06,247.52,247.51,31.10426486]
[1758207234261,0.06,247.52,247.51,43.38984543]
[1758207234840,0.06,247.52,247.51,56.98543944]
[1758207235046,0.06,247.54,247.51,67.08604143]
[1758207235243,0.06,247.56,247.55,26.0]
[1758207235652,0.06,247.56,247.55,27.06395879]
[1758207236065,1e-08,247.56,247.55,14.6595528]
[1758207236448,1e-08,247.56,247.55,59.18395879]
[1758207236659,1e-08,247.56,247.55,58.54395879]
[1758207236849,1e-08,247.56,247.55,30.03958796]
[1758207237271,1e-08,247.56,247.55,4.03958796]
[1758207237448,1e-08,247.56,247.53,4.03991435]
[1758207237768,1e-08,247.56,247.54,26.0]
[1758207238178,1e-08,247.56,247.55,26.66]
[1758207238674,1e-08,247.56,247.55,26.0]
[1758207238853,1e-08,247.56,247.55,30.03958796]
[1758207239667,1e-08,247.56,247.55,26.0]
[1758207239871,1e-08,247.56,247.54,26.0]
[1758207240053,1e-08,247.56,247.55,26.0]
[1758207240252,1e-08,247.56,247.55,26.66]
[1758207240459,1e-08,247.56,247.55,26.0]
[1758207240855,1e-08,247.56,247.55,30.03958796]
[1758207241244,1e-08,247.56,247.55,26.0]
[1758207241449,0.69000001,247.56,247.54,4.03972412]
[1758207241645,0.69000001,247.56,247.55,26.0]
[1758207242045,0.69000001,247.56,247.51,44.36558057]
[1758207242266,0.69000001,247.56,247.51,12.28558057]
[1758207242470,1e-08,247.56,247.54,26.0]
[1758207242863,1e-08,247.56,247.55,4.03958796]
[1758207243752,1e-08,247.56,247.54,26.0]
[1758207244073,1e-08,247.56,247.54,30.03974299]
[1758207245861,1e-08,247.56,247.55,30.03958796]
[1758207247076,0.71000001,247.56,247.51,26.0]
[1758207247284,0.71,247.55,247.49,4.04056729]
[1758207247483,0.71,247.55,247.51,26.0]
[1758207247662,0.71,247.54,247.51,26.0]
[1758207247860,0.71,247.53,247.51,26.0]
[1758207248387,0.71000001,247.56,247.51,26.0]
[1758207248582,0.71,247.53,247.51,26.0]
[1758207248967,0.71,247.52,247.46,26.0]
[1758207249277,5.73037815,247.56,247.43,0.72]
[1758207249278,0.71,247.51,247.43,0.72]
[1758207249463,0.71,247.51,247.45,26.0]
[1758207249661,0.71,247.51,247.45,38.22066021]
[1758207249864,0.71,247.51,247.47,26.0]
[1758207250376,0.71,247.5,247.47,26.0]
[1758207250573,0.71,247.49,247.47,26.0]
[1758207250967,0.71,247.49,247.33,100.8]
[1758207250968,0.71,247.48,247.41,4.04185458]
[1758207251372,1.69094537,247.5,247.41,26.0]
[1758207251576,0.71,247.47,247.41,26.0]
[1758207251775,0.71,247.46,247.4,0.03]
[1758207252163,0.71,247.46,247.4,26.03]
[1758207252977,4.04045847,247.5,247.4,26.03]
[1758207253175,0.71,247.49,247.4,26.75]
[1758207253684,0.71,247.48,247.41,26.0]
[1758207253865,0.71,247.47,247.41,26.0]
[1758207254060,0.71,247.46,247.41,26.0]
[1758207254283,0.71,247.45,247.4,0.03]
[1758207254669,2.40094537,247.45,247.4,0.03]
[1758207254864,1.69094537,247.42,247.4,0.03]
[1758207255064,1.69094537,247.41,247.4,0.03]
[1758207255268,0.71,247.41,247.4,0.03]
[1758207256056,4.75187381,247.41,247.4,0.03]
[1758207256257,0.71,247.44,247.4,0.03]
[1758207257277,0.71,247.43,247.4,0.03]
[1758207257482,4.75108405,247.46,247.4,0.03]
[1758207257669,4.0406215,247.49,247.4,0.03]
[1758207257868,0.71,247.48,247.4,0.03]
[1758207259068,4.0406215,247.49,247.4,0.03]
[1758207259069,0.71,247.5,247.41,0.72]
[1758207259479,0.71,247.5,247.43,26.0]
[1758207261163,0.71,247.5,247.44,30.04138376]
[1758207262662,0.71,247.5,247.44,4.04138376]
[1758207262868,2.69972263,247.56,247.45,0.72]
[1758207263070,0.71,247.54,247.45,0.72]
[1758207263287,0.71,247.54,247.46,4.04105714]
[1758207263478,0.71,247.53,247.44,4.04125047]
[1758207263689,0.71,247.52,247.44,4.04125047]
[1758207263859,0.71,247.51,247.44,4.04125047]
[1758207264064,4.03977502,247.54,247.44,30.04125047]
[1758207264065,0.71,247.5,247.44,30.04125047]
[1758207264664,0.71,247.52,247.44,30.04125047]
[1758207264865,4.04040404,247.5,247.45,26.0]
[1758207265066,4.04040404,247.5,247.42,30.04159079]
[1758207265391,0.71,247.49,247.42,30.04159079]